fUST/lending_fUST_20241205
["ID","MTS","AMOUNT","RATE_DAILY","PERIOD"]
[344295176,1733331044935,-518.77985152,0.00024657,7]
[344295177,1733331044944,-500.0,0.00024657,7]
[344295180,1733331044954,-1250.23,0.00024657,7]
[344295182,1733331044964,-545.64867792,0.00024657,7]
[344295184,1733331044974,-500.0,0.00024657,7]
[344295186,1733331044983,-500.0,0.00024657,7]
[344295188,1733331044997,-500.0,0.00024657,7]
[344295190,1733331045006,-512.72193512,0.00024657,7]
[344295192,1733331045016,-1250.59,0.00024657,7]
[344295194,1733331045025,-500.0,0.00024657,7]
[344295196,1733331045034,-506.48297114,0.00024657,7]
[344295198,1733331045044,-500.0,0.00024657,7]
[344295199,1733331045054,-504.12349336,0.00024657,7]
[344295201,1733331045063,-500.0,0.00024657,7]
[344295203,1733331045073,-674.47,0.00024657,7]
[344295205,1733331045083,-500.0,0.00024657,7]
[344295207,1733331045095,-500.0,0.00024657,7]
[344295209,1733331045105,-600.94301478,0.00024657,7]
[344295211,1733331045115,-500.0,0.00024657,7]
[344295213,1733331045124,-504.48858303,0.00024657,7]
[344295215,1733331045134,-512.50263289,0.00024657,7]
[344295217,1733331045143,-500.0,0.00024657,7]
[344295219,1733331045152,-500.0,0.00024657,7]
[344295221,1733331045162,-1017.66,0.00024657,7]
[344295223,1733331045171,-1138.79,0.00024657,7]
[344295225,1733331045180,-486.28411944,0.00024657,7]
[344295227,1733331045190,-634.97,0.00024657,7]
[344295229,1733331045199,-500.0,0.00024657,7]
[344295231,1733331045208,-500.0,0.00024657,7]
[344295233,1733331045217,-500.0,0.00024657,7]
[344295235,1733331045227,-3400.47,0.00024657,7]
[344295237,1733331045237,-500.56301181,0.00024657,7]
[344295238,1733331045251,-500.0,0.00024657,7]
[344295241,1733331045261,-500.0,0.00024657,7]
[344295242,1733331045271,-2026.96,0.00024657,7]
[344295245,1733331045281,-500.0,0.00024657,7]
[344295247,1733331045290,-500.0,0.00024657,7]
[344295249,1733331045299,-500.0,0.00024657,7]
[344295250,1733331045308,-500.0,0.00024657,7]
[344295252,1733331045318,-500.0,0.00024657,7]
[344295254,1733331045327,-500.0,0.00024657,7]
[344295256,1733331045337,-500.0,0.00024657,7]
[344295258,1733331045347,-1041.8,0.00024657,7]
[344295260,1733331045357,-1115.9,0.00024657,7]
[344295262,1733331045368,-500.0,0.00024657,7]
[344295265,1733331045378,-591.81,0.00024657,7]
[344295266,1733331045388,-507.91723667,0.00024657,7]
[344295268,1733331045399,-500.0,0.00024657,7]
[344295271,1733331045410,-653.03,0.00024657,7]
[344295273,1733331045421,-619.71,0.00024657,7]
[344295274,1733331045431,-1337.24,0.00024657,7]
[344295276,1733331045442,-516.43907117,0.00024657,7]
[344295279,1733331045452,-1180.0,0.00024657,7]
[344295280,1733331045462,-535.46484069,0.00024657,7]
[344295282,1733331045472,-500.0,0.00024657,7]
[344295284,1733331045481,-500.0,0.00024657,7]
[344295286,1733331045494,-500.0,0.00024657,7]
[344295288,1733331045503,-500.0,0.00024657,7]
[344295290,1733331045513,-500.0,0.00024657,7]
[344295292,1733331045523,-500.0,0.00024657,7]
[344295294,1733331045533,-518.77278555,0.00024657,7]
[344295296,1733331045544,-618.75,0.00024657,7]
[344295298,1733331045554,-500.0,0.00024657,7]
[344295300,1733331045563,-500.0,0.00024657,7]
[344295308,1733331045630,-500.0,0.00024657,7]
[344295310,1733331045641,-1246.36,0.00024657,7]
[344295312,1733331045651,-729.23,0.00024657,7]
[344295314,1733331045661,-500.0,0.00024657,7]
[344295316,1733331045671,-1111.43,0.00024657,7]
[344295318,1733331045681,-500.0,0.00024657,7]
[344295320,1733331045690,-688.99,0.00024657,7]
[344295322,1733331045699,-500.0,0.00024657,7]
[344295324,1733331045710,-500.0,0.00024657,7]
[344295326,1733331045718,-500.0,0.00024657,7]
[344295328,1733331045728,-330.04237748,0.00024657,7]
[344295330,1733331045741,-500.0,0.00024657,7]
[344295332,1733331045750,-1165.34,0.00024657,7]
[344295335,1733331045760,-315.80884621,0.00024657,7]
[344295337,1733331045770,-516.18,0.00024657,7]
[344295339,1733331045781,-771.77,0.00024657,7]
[344295341,1733331045790,-500.0,0.00024657,7]
[344295343,1733331045800,-500.0,0.00024657,7]
[344295345,1733331045811,-500.0,0.00024657,7]
[344295347,1733331045821,-500.0,0.00024657,7]
[344295351,1733331045831,-160.17974169,0.00024673,2]
[344295353,1733331045841,-329.20595523,0.00024673,2]
[344295355,1733331045853,-500.0,0.00024673,2]
[344295357,1733331045863,-500.0,0.00024673,2]
[344295359,1733331045877,-500.0,0.00024673,2]
[344295361,1733331045888,-500.0,0.00024673,2]
[344295364,1733331045899,-177.94721152,0.00024853,2]
[344295368,1733331045911,-231.65847669,0.00024931,7]
[344295371,1733331045921,-500.0,0.00024931,7]
[344295373,1733331045932,-500.0,0.00024931,7]
[344295375,1733331045943,-550.48,0.00024931,7]
[344295377,1733331045953,-353.50058052,0.00024931,7]
[344295379,1733331045963,-663.28,0.00024931,7]
[344295381,1733331045973,-502.36685873,0.00024931,7]
[344295383,1733331045982,-500.0,0.00024931,7]
[344295385,1733331045996,-500.0,0.00024931,7]
[344295387,1733331046005,-647.17,0.00024931,7]
[344295389,1733331046015,-500.0,0.00024931,7]
[344295391,1733331046024,-500.0,0.00024931,7]
[344295392,1733331046034,-500.0,0.00024931,7]
[344295394,1733331046044,-500.0,0.00024931,7]
[344295397,1733331046054,-500.0,0.00024931,7]
[344295399,1733331046064,-597.73693504,0.00024931,7]
[344295401,1733331046078,-428.03996566,0.00024931,7]
[344295404,1733331046104,-500.0,0.00024931,7]
[344295407,1733331046123,-500.0,0.00024931,2]
[344295409,1733331046146,-742.07,0.00024931,7]
[344295413,1733331046169,-500.0,0.00024931,7]
[344295415,1733331046189,-500.0,0.00024931,7]
[344295419,1733331046214,-500.0,0.00024931,7]
[344295422,1733331046231,-649.37849436,0.00024931,7]
[344295425,1733331046254,-731.67,0.00024931,7]
[344295428,1733331046278,-500.0,0.00024931,7]
[344295431,1733331046304,-500.0,0.00024931,7]
[344295434,1733331046319,-500.0,0.00024931,7]
[344295437,1733331046340,-432.0238694,0.00024931,7]
[344295440,1733331046358,-500.0,0.00024931,7]
[344295443,1733331046376,-500.0,0.00024931,7]
[344295445,1733331046391,-794.46,0.00024931,7]
[344295448,1733331046409,-500.0,0.00024931,7]
[344295451,1733331046426,-500.0,0.00024931,7]
[344295454,1733331046443,-500.0,0.00024931,7]
[344295456,1733331046459,-500.0,0.00024931,7]
[344295459,1733331046476,-500.0,0.00024931,7]
[344295462,1733331046497,-500.0,0.00024931,7]
[344295465,1733331046516,-183.06704887,0.00024931,7]
[344295468,1733331046533,-500.0,0.00024931,7]
[344295470,1733331046551,-500.0,0.00024931,7]
[344295473,1733331046568,-500.0,0.00024931,7]
[344295476,1733331046586,-333.1208509,0.00024931,7]
[344295479,1733331046605,-508.59796121,0.00024931,7]
[344295482,1733331046624,-500.0,0.00024931,7]
[344295485,1733331046642,-500.0,0.00024931,7]
[344295488,1733331046661,-500.0,0.00024931,7]
[344295491,1733331046678,-500.0,0.00024931,7]
[344295493,1733331046697,-557.44,0.00024931,7]
[344295496,1733331046715,-500.0,0.00024931,7]
[344295499,1733331046733,-500.0,0.00024931,7]
[344295502,1733331046753,-500.0,0.00024931,7]
[344295505,1733331046771,-500.0,0.00024931,7]
[344295508,1733331046788,-500.0,0.00024931,7]
[344295510,1733331046805,-500.0,0.00024931,7]
[344295513,1733331046822,-500.0,0.00024931,7]
[344295516,1733331046840,-500.0,0.00024931,7]
[344295519,1733331046857,-500.0,0.00024931,7]
[344295532,1733331046975,-782.05,0.00024931,7]
[344295534,1733331046999,-500.0,0.00024931,7]
[344295537,1733331047009,-500.0,0.00024931,7]
[344295539,1733331047019,-546.87460285,0.00024931,7]
[344295540,1733331047028,-500.0,0.00024931,7]
[344295543,1733331047038,-500.0,0.00024931,7]
[344295545,1733331047048,-500.0,0.00024931,7]
[344295547,1733331047057,-500.0,0.00024931,7]
[344295549,1733331047068,-500.0,0.00024931,7]
[344295551,1733331047078,-500.0,0.00024931,7]
[344295553,1733331047087,-500.0,0.00024931,7]
[344295555,1733331047097,-500.0,0.00024931,7]
[344295557,1733331047107,-500.0,0.00024931,7]
[344295558,1733331047116,-1159.1,0.00024931,7]
[344295560,1733331047126,-528.73906071,0.00024931,7]
[344295562,1733331047137,-461.74022367,0.00024931,7]
[344295564,1733331047146,-500.0,0.00024931,7]
[344295566,1733331047156,-502.04834022,0.00024931,7]
[344295568,1733331047165,-500.0,0.00024931,7]
[344295570,1733331047175,-720.5,0.00024931,7]
[344295572,1733331047185,-500.0,0.00024931,7]
[344295574,1733331047195,-500.0,0.00024931,7]
[344295576,1733331047204,-500.0,0.00024931,7]
[344295578,1733331047214,-500.0,0.00024931,7]
[344295580,1733331047224,-500.0,0.00024931,7]
[344295582,1733331047234,-500.0,0.00024931,7]
[344295584,1733331047247,-500.0,0.00024931,7]
[344295586,1733331047257,-500.0,0.00024931,7]
[344295588,1733331047267,-643.77724444,0.00024931,7]
[344295590,1733331047277,-856.58,0.00024931,7]
[344295592,1733331047286,-500.0,0.00024931,7]
[344295594,1733331047296,-500.0,0.00024931,7]
[344295596,1733331047305,-502.62683356,0.00024931,7]
[344295598,1733331047315,-500.0,0.00024931,7]
[344295600,1733331047325,-500.0,0.00024931,7]
[344295602,1733331047335,-500.0,0.00024931,7]
[344295603,1733331047345,-500.0,0.00024931,7]
[344295604,1733331047354,-500.0,0.00024931,7]
[344295605,1733331047364,-500.0,0.00024931,7]
[344295606,1733331047374,-530.011299,0.00024931,7]
[344295607,1733331047384,-1402.3,0.00024931,7]
[344295608,1733331047394,-366.15468219,0.00024931,7]
[344295609,1733331047404,-500.0,0.00024931,7]
[344295610,1733331047414,-500.0,0.00024931,7]
[344295611,1733331047424,-500.0,0.00024931,7]
[344295612,1733331047434,-500.0,0.00024931,7]
[344295613,1733331047443,-500.0,0.00024931,7]
[344295614,1733331047453,-500.0,0.00024931,7]
[344295615,1733331047462,-500.0,0.00024931,7]
[344295616,1733331047471,-500.0,0.00024931,7]
[344295618,1733331047481,-500.0,0.00024931,7]
[344295620,1733331047494,-500.0,0.00024931,7]
[344295622,1733331047503,-572.72,0.00024931,7]
[344295624,1733331047513,-500.0,0.00024931,7]
[344295627,1733331047522,-692.0,0.00024931,7]
[344295629,1733331047532,-1434.53,0.00024931,7]
[344295631,1733331047541,-500.0,0.00024931,7]
[344295632,1733331047551,-500.0,0.00024931,7]
[344295635,1733331047561,-506.09670216,0.00024931,7]
[344295636,1733331047571,-500.0,0.00024931,7]
[344295638,1733331047580,-500.0,0.00024931,7]
[344295640,1733331047590,-1335.07,0.00024931,7]
[344295643,1733331047600,-261.96880808,0.00024931,7]
[344295645,1733331047610,-1241.02,0.00024931,7]
[344295646,1733331047619,-500.0,0.00024931,7]
[344295649,1733331047629,-500.0,0.00024931,7]
[344295651,1733331047639,-1393.96,0.00024931,7]
[344295653,1733331047649,-500.0,0.00024931,7]
[344295655,1733331047659,-500.0,0.00024931,7]
[344295656,1733331047669,-522.4,0.00024931,7]
[344295659,1733331047678,-500.0,0.00024931,7]
[344295661,1733331047688,-500.0,0.00024931,7]
[344295663,1733331047698,-500.0,0.00024931,7]
[344295664,1733331047708,-500.0,0.00024931,7]
[344295666,1733331047718,-500.0,0.00024931,7]
[344295668,1733331047727,-500.0,0.00024931,7]
[344295670,1733331047738,-620.02,0.00024931,7]
[344295672,1733331047750,-500.0,0.00024931,7]
[344295674,1733331047759,-942.07,0.00024931,7]
[344295676,1733331047770,-500.0,0.00024931,7]
[344295678,1733331047780,-500.0,0.00024931,7]
[344295680,1733331047790,-501.38,0.00024931,7]
[344295682,1733331047799,-500.0,0.00024931,7]
[344295684,1733331047810,-500.0,0.00024931,7]
[344295686,1733331047820,-940.36,0.00024931,7]
[344295688,1733331047830,-500.0,0.00024931,7]
[344295690,1733331047840,-500.0,0.00024931,7]
[344295692,1733331047850,-500.0,0.00024931,7]
[344295694,1733331047860,-508.48287804,0.00024931,7]
[344295696,1733331047871,-500.0,0.00024931,7]
[344295698,1733331047883,-500.0,0.00024931,7]
[344295700,1733331047894,-500.0,0.00024931,7]
[344295702,1733331047904,-500.0,0.00024931,7]
[344295704,1733331047915,-500.0,0.00024931,7]
[344295706,1733331047925,-500.0,0.00024931,7]
[344295708,1733331047935,-500.0,0.00024931,7]
[344295710,1733331047945,-501.93836469,0.00024931,7]
[344295712,1733331047957,-500.0,0.00024931,7]
[344295714,1733331047968,-500.0,0.00024931,7]
[344295716,1733331047978,-500.0,0.00024931,7]
[344295718,1733331047992,-221.81943218,0.00024931,7]
[344295720,1733331048002,-500.0,0.00024931,7]
[344295722,1733331048012,-500.0,0.00024931,7]
[344295724,1733331048022,-500.0,0.00024931,7]
[344295726,1733331048033,-505.0682684,0.00024931,7]
[344295728,1733331048043,-500.0,0.00024931,7]
[344295730,1733331048053,-541.2,0.00024931,7]
[344295732,1733331048065,-508.63956554,0.00024931,7]
[344295734,1733331048076,-500.0,0.00024931,7]
[344295736,1733331048086,-287.80094327,0.00024931,7]
[344295738,1733331048096,-668.95,0.00024931,7]
[344295740,1733331048106,-614.53,0.00024931,7]
[344295742,1733331048117,-500.0,0.00024931,7]
[344295745,1733331048128,-500.0,0.00024931,7]
[344295747,1733331048138,-732.18,0.00024931,7]
[344295749,1733331048147,-500.0,0.00024931,7]
[344295751,1733331048158,-513.18027718,0.00024931,7]
[344295753,1733331048168,-500.0,0.00024931,7]
[344295755,1733331048177,-500.0,0.00024931,7]
[344295757,1733331048189,-500.0,0.00024931,7]
[344295759,1733331048199,-500.0,0.00024931,7]
[344295769,1733331048293,-500.0,0.00024931,7]
[344295772,1733331048311,-500.0,0.00024931,7]
[344295774,1733331048321,-500.0,0.00024931,7]
[344295776,1733331048331,-500.0,0.00024931,7]
[344295778,1733331048341,-500.0,0.00024931,7]
[344295780,1733331048350,-500.0,0.00024931,7]
[344295782,1733331048360,-500.0,0.00024931,2]
[344295784,1733331048369,-548.16947963,0.00024931,7]
[344295786,1733331048379,-500.0,0.00024931,7]
[344295788,1733331048389,-500.0,0.00024931,7]
[344295790,1733331048398,-1219.41,0.00024931,7]
[344295792,1733331048407,-698.01,0.00024931,7]
[344295794,1733331048417,-500.0,0.00024931,7]
[344295796,1733331048426,-500.0,0.00024931,7]
[344295798,1733331048436,-2033.51,0.00024931,7]
[344295800,1733331048446,-500.0,0.00024931,7]
[344295802,1733331048457,-500.0,0.00024931,7]
[344295804,1733331048467,-2896.6,0.00024931,7]
[344295806,1733331048476,-170.64536295,0.00024931,7]
[344295808,1733331048485,-394.15781395,0.00024931,7]
[344295810,1733331048504,-500.0,0.00024931,7]
[344295811,1733331048514,-500.0,0.00024931,7]
[344295812,1733331048524,-500.0,0.00024931,7]
[344295813,1733331048533,-500.0,0.00024931,7]
[344295814,1733331048543,-500.0,0.00024931,7]
[344295815,1733331048552,-500.0,0.00024931,7]
[344295816,1733331048562,-500.0,0.00024931,7]
[344295817,1733331048571,-500.0,0.00024931,7]
[344295818,1733331048581,-500.0,0.00024931,7]
[344295819,1733331048590,-549.47,0.00024931,7]
[344295820,1733331048599,-563.13749113,0.00024931,7]
[344295821,1733331048609,-500.0,0.00024931,7]
[344295822,1733331048618,-500.0,0.00024931,7]
[344295823,1733331048627,-500.0,0.00024931,7]
[344295824,1733331048637,-500.0,0.00024931,7]
[344295825,1733331048646,-500.0,0.00024931,7]
[344295826,1733331048655,-521.79,0.00024931,7]
[344295827,1733331048664,-500.0,0.00024931,7]
[344295828,1733331048673,-500.0,0.00024931,7]
[344295829,1733331048683,-500.0,0.00024931,7]
[344295830,1733331048693,-500.0,0.00024931,7]
[344295831,1733331048702,-1363.71,0.00024931,7]
[344295832,1733331048712,-500.0,0.00024931,7]
[344295834,1733331048721,-151.0,0.00024931,7]
[344295836,1733331048731,-207.40114423,0.00024931,7]
[344295838,1733331048747,-500.0,0.00024931,7]
[344295840,1733331048759,-500.0,0.00024931,7]
[344295841,1733331048769,-151.0,0.00024931,7]
[344295842,1733331048780,-650.65,0.00024931,7]
[344295843,1733331048790,-170.02144,0.00024931,7]
[344295844,1733331048800,-10576.83,0.00024931,7]
[344295845,1733331048809,-500.0,0.00024931,7]
[344295846,1733331048819,-500.0,0.00024931,7]
[344295847,1733331048829,-151.0,0.00024931,7]
[344295848,1733331048839,-500.65,0.00024931,7]
[344295849,1733331048848,-500.0,0.00024931,7]
[344295850,1733331048858,-500.0,0.00024931,7]
[344295851,1733331048869,-500.0,0.00024931,7]
[344295852,1733331048881,-500.0,0.00024931,7]
[344295853,1733331048891,-500.0,0.00024931,7]
[344295854,1733331048901,-500.0,0.00024931,7]
[344295855,1733331048911,-500.0,0.00024931,7]
[344295856,1733331048922,-684.15,0.00024931,7]
[344295857,1733331048933,-500.0,0.00024931,7]
[344295858,1733331048942,-557.22265123,0.00024931,7]
[344295859,1733331048953,-532.17670151,0.00024931,7]
[344295860,1733331048964,-500.0,0.00024931,7]
[344295861,1733331048974,-500.0,0.00024931,7]
[344295862,1733331048984,-500.0,0.00024931,7]
[344295863,1733331048999,-500.0,0.00024931,7]
[344295864,1733331049009,-500.0,0.00024931,7]
[344295865,1733331049018,-1465.31,0.00024931,7]
[344295866,1733331049028,-792.7,0.00024931,7]
[344295867,1733331049037,-606.68,0.00024931,7]
[344295868,1733331049046,-479.23762056,0.00024931,7]
[344295869,1733331049057,-1072.01,0.00024931,7]
[344295870,1733331049066,-500.0,0.00024931,7]
[344295871,1733331049076,-250.20483277,0.00024931,7]
[344295872,1733331049086,-269.85779196,0.00024931,7]
[344295873,1733331049096,-690.93,0.00024931,7]
[344295874,1733331049105,-500.0,0.00024931,7]
[344295875,1733331049115,-500.0,0.00024931,7]
[344295877,1733331049124,-200.0,0.00024931,7]
[344295878,1733331049134,-532.7742584,0.00024931,7]
[344295880,1733331049143,-500.0,0.00024931,7]
[344295882,1733331049154,-500.0,0.00024931,7]
[344295884,1733331049163,-635.47804144,0.00024931,7]
[344295886,1733331049173,-1130.9,0.00024931,7]
[344295888,1733331049183,-766.18,0.00024931,7]
[344295890,1733331049193,-582.4666266,0.00024931,7]
[344295892,1733331049202,-979.02,0.00024931,7]
[344295894,1733331049212,-500.0,0.00024931,7]
[344295896,1733331049222,-500.0,0.00024931,7]
[344295897,1733331049234,-500.0,0.00024931,7]
[344295899,1733331049248,-295.39826421,0.00024931,7]
[344295901,1733331049259,-545.35696666,0.00024931,7]
[344295903,1733331049268,-500.0,0.00024931,7]
[344295905,1733331049278,-500.0,0.00024931,7]
[344295907,1733331049288,-500.0,0.00024931,7]
[344295908,1733331049297,-546.46518325,0.00024931,7]
[344295910,1733331049307,-5398.24,0.00024931,7]
[344295912,1733331049317,-500.0,0.00024931,7]
[344295914,1733331049327,-959.45,0.00024931,7]
[344295916,1733331049337,-571.56,0.00024931,7]
[344295918,1733331049348,-637.8,0.00024931,7]
[344295920,1733331049358,-500.0,0.00024931,7]
[344295923,1733331049369,-12106.03,0.00024931,7]
[344295924,1733331049380,-500.0,0.00024931,7]
[344295926,1733331049390,-308.92605143,0.00024931,7]
[344295928,1733331049402,-446.20709788,0.00024931,7]
[344295930,1733331049412,-500.0,0.00024931,7]
[344295932,1733331049423,-500.0,0.00024931,7]
[344295940,1733331049527,-1073.97,0.00024931,7]
[344295941,1733331049538,-500.0,0.00024931,7]
[344295942,1733331049549,-509.55557685,0.00024931,7]
[344295943,1733331049560,-500.0,0.00024931,7]
[344295944,1733331049571,-500.0,0.00024931,7]
[344295945,1733331049581,-3667.14,0.00024931,7]
[344295946,1733331049591,-500.0,0.00024931,7]
[344295947,1733331049602,-500.0,0.00024931,7]
[344295948,1733331049611,-500.0,0.00024931,7]
[344295949,1733331049622,-500.0,0.00024931,7]
[344295950,1733331049631,-500.0,0.00024931,7]
[344295951,1733331049641,-619.76,0.00024931,7]
[344295952,1733331049651,-500.0,0.00024931,7]
[344295953,1733331049661,-500.0,0.00024931,7]
[344295954,1733331049671,-151.793289,0.00024931,7]
[344295955,1733331049681,-500.0,0.00024931,7]
[344295956,1733331049691,-500.0,0.00024931,7]
[344295957,1733331049700,-500.0,0.00024931,7]
[344295958,1733331049709,-500.0,0.00024931,7]
[344295959,1733331049719,-500.0,0.00024931,7]
[344295960,1733331049729,-500.0,0.00024931,7]
[344295961,1733331049739,-500.0,0.00024931,7]
[344295962,1733331049751,-1604.41,0.00024931,7]
[344295963,1733331049761,-500.0,0.00024931,7]
[344295964,1733331049770,-500.0,0.00024931,7]
[344295965,1733331049780,-468.22433455,0.00024931,7]
[344295966,1733331049791,-500.0,0.00024931,7]
[344295967,1733331049801,-564.17,0.00024931,7]
[344295968,1733331049811,-2600.34,0.00024931,7]
[344295969,1733331049821,-251.54060798,0.00024931,7]
[344295971,1733331049830,-653.89,0.00024931,7]
[344295973,1733331049840,-523.19,0.00024931,7]
[344295975,1733331049850,-500.0,0.00024931,7]
[344295977,1733331049860,-500.0,0.00024931,7]
[344295978,1733331049870,-500.0,0.00024931,7]
[344295980,1733331049880,-500.0,0.00024931,7]
[344295981,1733331049893,-500.0,0.00024931,7]
[344295982,1733331049903,-500.0,0.00024931,7]
[344295983,1733331049914,-2252.96,0.00024931,7]
[344295984,1733331049925,-1103.9,0.00024931,7]
[344295985,1733331049938,-200.0,0.00024931,7]
[344295986,1733331049947,-589.38794169,0.00024931,7]
[344295987,1733331049957,-3483.6,0.00024931,7]
[344295988,1733331049968,-500.0,0.00024931,7]
[344295989,1733331049977,-858.72,0.00024931,7]
[344295990,1733331049987,-592.78123312,0.00024931,7]
[344295991,1733331050001,-500.0,0.00024931,7]
[344295992,1733331050010,-998.79,0.00024931,7]
[344295993,1733331050020,-277.25611589,0.00024931,7]
[344295994,1733331050030,-1250.23,0.00024931,7]
[344295995,1733331050039,-500.0,0.00024931,7]
[344295996,1733331050048,-500.0,0.00024931,7]
[344295997,1733331050058,-500.0,0.00024931,7]
[344295998,1733331050068,-1250.59,0.00024931,7]
[344295999,1733331050077,-500.0,0.00024931,7]
[344296000,1733331050087,-552.90448323,0.00024931,7]
[344296001,1733331050096,-674.47,0.00024931,7]
[344296002,1733331050106,-500.0,0.00024931,7]
[344296003,1733331050115,-417.127008,0.00024931,7]
[344296004,1733331050125,-500.0,0.00024931,7]
[344296005,1733331050135,-206.33568852,0.00024931,7]
[344296006,1733331050144,-417.127008,0.00024931,7]
[344296007,1733331050153,-1017.66,0.00024931,7]
[344296008,1733331050163,-1138.79,0.00024931,7]
[344296009,1733331050173,-634.97,0.00024931,7]
[344296010,1733331050182,-500.0,0.00024931,7]
[344296011,1733331050192,-500.0,0.00024931,7]
[344296012,1733331050201,-372.6243499,0.00024931,7]
[344296013,1733331050210,-3400.47,0.00024931,7]
[344296014,1733331050219,-500.0,0.00024931,7]
[344296015,1733331050229,-500.0,0.00024931,7]
[344296016,1733331050239,-2026.96,0.00024931,7]
[344296017,1733331050252,-500.0,0.00024931,7]
[344296018,1733331050262,-500.0,0.00024931,7]
[344296019,1733331050272,-500.0,0.00024931,7]
[344296020,1733331050281,-500.0,0.00024931,7]
[344296021,1733331050291,-500.0,0.00024931,7]
[344296022,1733331050300,-500.0,0.00024931,7]
[344296023,1733331050309,-500.0,0.00024931,7]
[344296024,1733331050318,-1041.8,0.00024931,7]
[344296025,1733331050328,-1115.9,0.00024931,7]
[344296026,1733331050337,-500.0,0.00024931,7]
[344296027,1733331050347,-591.81,0.00024931,7]
[344296028,1733331050356,-500.0,0.00024931,7]
[344296029,1733331050366,-653.03,0.00024931,7]
[344296030,1733331050375,-619.71,0.00024931,7]
[344296031,1733331050385,-1337.24,0.00024931,7]
[344296032,1733331050395,-1180.0,0.00024931,7]
[344296033,1733331050405,-503.89664308,0.00024931,7]
[344296034,1733331050415,-500.0,0.00024931,7]
[344296035,1733331050424,-500.0,0.00024931,7]
[344296036,1733331050434,-500.0,0.00024931,7]
[344296037,1733331050444,-500.0,0.00024931,7]
[344296038,1733331050453,-504.93818014,0.00024931,7]
[344296039,1733331050463,-152.143134,0.00024931,7]
[344296040,1733331050474,-618.75,0.00024931,7]
[344296041,1733331050485,-513.21817889,0.00024931,7]
[344296042,1733331050500,-500.0,0.00024931,7]
[344296043,1733331050511,-500.0,0.00024931,7]
[344296044,1733331050521,-1246.36,0.00024931,7]
[344296045,1733331050532,-729.23,0.00024931,7]
[344296046,1733331050542,-500.0,0.00024931,7]
[344296047,1733331050552,-164.179794,0.00024931,7]
[344296048,1733331050634,-1111.43,0.00024931,7]
[344296049,1733331050644,-500.0,0.00024931,7]
[344296050,1733331050655,-164.179794,0.00024931,7]
[344296051,1733331050665,-500.0,0.00024931,7]
[344296052,1733331050675,-688.99,0.00024931,7]
[344296053,1733331050685,-500.0,0.00024931,7]
[344296054,1733331050695,-500.0,0.00024931,7]
[344296055,1733331050704,-1165.34,0.00024931,7]
[344296056,1733331050714,-516.18,0.00024931,7]
[344296057,1733331050725,-771.77,0.00024931,7]
[344296058,1733331050735,-500.0,0.00024931,7]
[344296059,1733331050749,-500.0,0.00024931,7]
[344296060,1733331050758,-500.0,0.00024931,7]
[344296061,1733331050767,-500.0,0.00024931,7]
[344296062,1733331050777,-500.0,0.00024973,2]